bitfinex/quotes_SOLUSD_20240826
["timestamp","ask_amount","ask_price","bid_price","bid_amount"]
[1724690132556,15.8644,157.59,157.48,32.415]
[1724690132887,45.0,157.58,157.48,32.415]
[1724690133390,15.8644,157.59,157.48,32.415]
[1724690133581,6.3473,157.55,157.5,15.8726]
[1724690133756,6.3473,157.55,157.51,6.3485]
[1724690134288,15.7441,157.6,157.5,18.64863543]
[1724690134496,6.3448,157.61,157.56,6.3467]
[1724690134783,6.3448,157.61,157.57,1.2691487]
[1724690135189,6.3448,157.61,157.56,6.3467]
[1724690135557,6.331,157.66,157.56,15.8661]
[1724690135762,6.3423,157.67,157.62,6.344]
[1724690136010,6.3419,157.69,157.63,7.61216705]
[1724690136300,381.3,157.74,157.62,15.86]
[1724690136505,6.3412,157.7,157.64,6.3435]
[1724690137171,6.3407,157.71,157.66,6.3426]
[1724690137367,381.3,157.74,157.64,22.2011]
[1724690137584,381.3,157.74,157.64,15.8579]
[1724690137789,6.3412,157.7,157.64,22.2013]
[1724690139004,15.8511,157.72,157.6,15.8621]
[1724690139307,6.3419,157.68,157.62,6.3441]
[1724690139808,6.3427,157.66,157.61,6.3446]
[1724690140011,6.3431,157.65,157.6,15.8621]
[1724690140180,6.3428,157.66,157.6,22.2072]
[1724690143288,6.3432,157.65,157.6,22.2072]
[1724690144006,6.3432,157.65,157.61,6.3447]
[1724690144910,6.3428,157.66,157.61,6.3447]
[1724690145881,6.3424,157.67,157.62,6.3443]
[1724690146086,6.3423,157.68,157.63,6.3438]
[1724690147077,6.3423,157.68,157.64,6.3434]
[1724690147416,6.3416,157.69,157.64,22.9815]
[1724690151001,6.342,157.68,157.64,22.9815]
[1724690151902,6.3424,157.67,157.64,16.6381]
[1724690153100,6.3428,157.66,157.64,16.6381]
[1724690153298,6.3424,157.67,157.64,16.6381]
[1724690154023,15.8511,157.72,157.64,16.6381]
[1724690154024,6.342,157.68,157.64,16.6381]
[1724690155000,6.3416,157.69,157.64,22.9813]
[1724690156225,6.3412,157.7,157.66,6.3427]
[1724690156393,6.341,157.71,157.66,7.61099025]
[1724690157320,16.6564086,157.75,157.66,7.61099025]
[1724690157321,6.3404,157.72,157.66,15.8565]
[1724690157724,7.1471086,157.75,157.71,6.3406]
[1724690158221,7.1471086,157.75,157.7,6.341]
[1724690158425,7.1471086,157.75,157.71,1.26799497]
[1724690160227,6.3395,157.74,157.7,6.341]
[1724690161034,6.3401,157.73,157.69,6.3414]
[1724690162033,0.8079086,157.75,157.7,6.3411]
[1724690162530,6.3395,157.74,157.7,6.3411]
[1724690163345,6.3401,157.73,157.69,6.3414]
[1724690164764,6.3395,157.74,157.7,6.3411]
[1724690164916,0.8079086,157.75,157.7,15.8522]
[1724690165119,0.8079086,157.75,157.72,6.3399]
[1724690166037,0.8079086,157.75,157.7,30.95065528]
[1724690166359,0.8079086,157.75,157.74,6.3395]
[1724690166949,0.8079086,157.75,157.74,22.7196]
[1724690169840,0.8079086,157.75,157.74,23.98703797]
[1724690170256,0.8079086,157.75,157.74,22.7196]
[1724690172653,0.8079086,157.75,157.74,16.3801]
[1724690172838,0.8079086,157.75,157.74,22.7196]
[1724690173036,0.8079086,157.75,157.72,22.19]
[1724690173353,0.8079086,157.75,157.73,6.3397]
[1724690174151,0.8079086,157.75,157.72,22.1902]
[1724690175464,7.1470086,157.75,157.7,6.3411]
[1724690175628,6.3396,157.74,157.7,6.3411]
[1724690176759,0.8079086,157.75,157.74,6.3395]
[1724690177130,0.8079086,157.75,157.73,22.1888]
[1724690177539,0.8079086,157.75,157.74,6.3395]
[1724690179157,0.8079086,157.75,157.74,12.9158]
[1724690180346,0.8079086,157.75,157.74,43.86645528]
[1724690180661,0.8079086,157.75,157.74,90.13379876]
[1724690181154,0.8079086,157.75,157.74,88.86645528]
[1724690181371,0.8079086,157.75,157.74,108.86645528]
[1724690183232,16.6052086,157.9,157.77,31.6905]
[1724690183462,16.6052086,157.9,157.86,15.8367]
[1724690183634,0.8079086,157.9,157.86,15.8367]
[1724690184154,0.8079086,157.9,157.88,6.3335]
[1724690184341,0.8079086,157.9,157.88,6.3338]
[1724690185266,0.8079086,157.9,157.89,23.43384896]
[1724690185442,0.8079086,157.9,157.87,6.3339]
[1724690185649,0.8079086,157.9,157.89,6.3335]
[1724690186443,0.8079086,157.9,157.89,7.59982819]
[1724690186646,0.8079086,157.9,157.89,6.3335]
[1724690186841,0.8079086,157.9,157.89,12.3355]
[1724690187047,0.8079086,157.9,157.89,57.3355]
[1724690187246,0.8079086,157.9,157.89,12.3355]
[1724690190572,0.8079086,157.9,157.89,6.3335]
[1724690191337,0.8079086,157.9,157.88,22.1686]
[1724690191537,0.8079086,157.9,157.88,15.8348]
[1724690192141,0.8079086,157.9,157.84,15.8378]
[1724690192643,6.3343,157.87,157.82,6.3362]
[1724690192848,6.3339,157.88,157.83,6.3358]
[1724690193572,0.8079086,157.9,157.81,47.5245]
[1724690193573,0.8079086,157.9,157.81,15.8417]
[1724690194571,6.3347,157.86,157.82,6.3363]
[1724690194881,0.8079086,157.9,157.81,15.8417]
[1724690195248,6.3342,157.88,157.83,6.3358]
[1724690195462,0.8079086,157.9,157.84,15.8387]
[1724690195662,6.3338,157.89,157.84,22.1741]
[1724690196392,6.3341,157.88,157.84,15.8387]
[1724690196979,6.3347,157.86,157.81,15.8414]
[1724690197176,6.3347,157.86,157.82,6.3363]
[1724690197679,6.3343,157.87,157.82,6.3363]
[1724690198474,6.3355,157.84,157.8,6.3368]
[1724690198685,6.3347,157.86,157.81,6.3367]
[1724690199203,6.3343,157.88,157.83,6.3358]
[1724690199579,6.3344,157.87,157.83,6.3358]
[1724690199896,16.6414086,157.9,157.81,6.3364]
[1724690200069,45.0,157.89,157.81,6.3364]
[1724690200590,6.3362,157.83,157.78,6.3375]
[1724690200769,15.8354,157.88,157.78,6.3375]
[1724690200770,6.3364,157.82,157.78,6.3375]
[1724690201106,397.1354,157.88,157.74,15.8245]
[1724690201107,6.3368,157.81,157.75,6.3387]
[1724690201468,22.4473,157.84,157.74,15.8485]
[1724690201469,6.3379,157.78,157.74,22.188]
[1724690201690,15.8407,157.83,157.7,31.6923]
[1724690201972,6.3383,157.77,157.71,6.3403]
[1724690202302,6.338,157.78,157.72,6.3403]
[1724690202594,6.3375,157.79,157.73,6.3398]
[1724690204994,45.0,157.78,157.72,15.85]
[1724690205170,51.338,157.78,157.72,22.1902]
[1724690205570,51.338,157.78,157.73,6.3398]
[1724690205878,6.3376,157.79,157.74,6.3394]
[1724690206285,381.3,157.83,157.75,15.8478]
[1724690207175,387.6362,157.83,157.78,6.3378]
[1724690207370,22.7805,157.84,157.79,6.3375]
[1724690207593,6.3356,157.84,157.79,6.3375]
[1724690208300,51.3359,157.83,157.78,6.3378]
[1724690208596,45.0,157.83,157.73,15.8489]
[1724690209008,6.3372,157.8,157.75,6.3388]
[1724690209500,6.3377,157.79,157.73,15.8489]
[1724690209673,21.5703,157.81,157.7,15.8525]
[1724690209871,20.0,157.8,157.7,15.8525]
[1724690210082,45.0,157.79,157.7,15.8525]
[1724690210981,6.3384,157.77,157.72,6.3402]
[1724690211189,6.3376,157.79,157.74,6.3392]
[1724690211405,21.5703,157.81,157.72,15.8503]
[1724690211590,381.3,157.82,157.74,15.8482]
[1724690211906,6.337,157.81,157.76,6.3384]
[1724690213381,381.3,157.82,157.74,15.8482]
[1724690213584,381.3,157.82,157.78,6.3376]
[1724690213809,6.336,157.83,157.78,6.3376]
[1724690214020,6.3355,157.84,157.79,6.3375]
[1724690215182,45.0,157.83,157.79,6.3375]
[1724690216116,381.3,157.89,157.76,38.0092]
[1724690216416,6.3347,157.86,157.81,22.178]
[1724690216605,6.3351,157.85,157.81,22.178]
[1724690216915,6.3351,157.85,157.81,15.8414]
[1724690217811,6.3348,157.86,157.81,15.8414]
[1724690217989,6.3348,157.86,157.81,22.178]
[1724690218613,6.3352,157.85,157.81,15.8414]
[1724690219119,278.5330086,157.9,157.76,6.3167]
[1724690219412,6.336,157.83,157.78,22.182]
[1724690219580,6.3356,157.84,157.79,6.3375]
[1724690219786,6.3364,157.82,157.78,15.8444]
[1724690220101,6.3359,157.83,157.79,6.3374]
[1724690220490,6.3356,157.84,157.79,6.3374]
[1724690221493,6.3356,157.84,157.78,15.8444]
[1724690221494,15.8375,157.86,157.76,6.3167]
[1724690221723,6.337,157.81,157.76,6.3167]
[1724690222023,15.8392,157.84,157.75,22.1861]
[1724690222181,6.3372,157.8,157.75,22.1861]
[1724690222817,6.3375,157.79,157.75,15.8474]
[1724690222992,6.3375,157.79,157.74,6.3394]
[1724690225193,45.0,157.83,157.74,15.8482]
[1724690225519,6.3372,157.8,157.75,6.339]
[1724690228525,6.3377,157.79,157.74,22.1877]
[1724690228701,6.3376,157.79,157.74,22.1877]
[1724690229319,6.3376,157.79,157.75,6.3391]
[1724690229543,6.3371,157.8,157.76,6.3386]
[1724690232104,45.0,157.83,157.77,6.3382]
[1724690232299,381.3,157.86,157.72,36.94164843]
[1724690232522,6.3356,157.84,157.79,6.3374]
[1724690234136,381.3,157.86,157.82,15.84]
[1724690234322,381.3,157.86,157.83,6.3355]
[1724690234514,381.3,157.86,157.82,22.1762]
[1724690234716,387.6347,157.86,157.82,22.1762]
[1724690235720,381.3,157.86,157.82,15.84]
[1724690236044,381.3,157.86,157.83,6.3357]
[1724690236836,381.3,157.86,157.84,6.3355]
[1724690237033,381.3,157.86,157.85,6.3351]
[1724690237216,6.3339,157.88,157.84,15.8381]
[1724690239012,381.3,157.89,157.81,15.8413]
[1724690239313,6.335,157.86,157.81,22.1779]
[1724690239824,6.335,157.86,157.82,6.3362]
[1724690240131,6.3343,157.87,157.82,6.3362]
[1724690240321,45.0,157.86,157.82,6.3362]
[1724690240515,6.3343,157.87,157.82,6.3362]
[1724690240730,381.3,157.86,157.82,6.3362]
[1724690244639,381.3,157.86,157.83,6.3358]
[1724690245147,381.3,157.86,157.84,6.3354]
[1724690245316,381.3,157.86,157.83,15.8392]
[1724690245824,6.3336,157.89,157.83,15.8392]
[1724690246546,0.8079086,157.9,157.85,6.3351]
[1724690246547,7.1410086,157.9,157.85,6.3351]
[1724690246715,6.3335,157.89,157.85,6.3351]
[1724690247116,0.8079086,157.9,157.87,15.8353]
[1724690247742,0.8079086,157.9,157.88,6.3336]
[1724690247913,0.8079086,157.9,157.89,6.3335]
[1724690249828,0.8079086,157.9,157.86,15.365]
[1724690250030,0.8079086,157.9,157.84,15.8382]
[1724690250216,0.8079086,157.9,157.86,6.3346]
[1724690250425,7.1411086,157.9,157.86,6.3346]
[1724690250850,0.8079086,157.9,157.86,6.3346]
[1724690251034,0.8079086,157.9,157.86,15.8364]
[1724690251432,0.8079086,157.9,157.89,6.3335]
[1724690253650,0.8079086,157.9,157.86,15.8364]
[1724690254332,0.8079086,157.9,157.86,22.1711]
[1724690254536,7.1410086,157.9,157.86,22.1711]
[1724690256335,6.6410086,157.9,157.86,22.1711]
[1724690257034,0.3079086,157.9,157.87,6.3343]
[1724690257229,0.3079086,157.9,157.86,15.8364]
[1724690257447,0.3079086,157.9,157.89,6.3335]
[1724690257751,0.3079086,157.9,157.89,7.60002862]
[1724690258225,0.3079086,157.9,157.89,6.3335]
[1724690261348,0.3079086,157.9,157.89,44.5061]
[1724690263139,0.3079086,157.9,157.89,109.5061]
[1724690263349,6.3288,158.01,157.96,6.3305]
[1724690263748,6.3292,158.0,157.95,22.158]
[1724690265344,6.3295,157.99,157.95,15.8273]
[1724690266055,15.9245,158.02,157.94,6.3313]
[1724690266056,6.3299,157.98,157.94,6.3313]
[1724690266252,15.9245,158.02,157.92,22.1623]
[1724690266462,6.3306,157.97,157.92,22.1623]
[1724690267158,6.3306,157.97,157.93,6.3318]
[1724690268535,6.33,157.98,157.93,6.3318]
[1724690271240,45.0,157.97,157.92,22.1625]
[1724690271440,6.3304,157.97,157.93,6.3318]
[1724690271640,6.3299,157.98,157.93,6.3318]
[1724690272659,45.0,158.01,157.94,15.8283]
[1724690272880,22.326,158.04,157.94,15.8283]
[1724690272881,6.3293,158.0,157.95,1.26599862]
[1724690273169,6.3276,158.04,157.99,6.3294]
[1724690273745,6.3279,158.03,157.99,6.3294]
[1724690274355,15.8181,158.05,157.95,15.8271]
[1724690274562,6.3284,158.02,157.97,6.33]
[1724690275068,6.3288,158.01,157.97,6.3302]
[1724690275254,6.3288,158.01,157.96,6.3303]
[1724690275744,6.3284,158.02,157.97,6.3302]
[1724690275945,45.0,158.01,157.97,6.3302]
[1724690276577,6.3284,158.02,157.98,6.3298]
[1724690277145,6.328,158.03,157.98,6.3298]
[1724690277676,16.9852086,158.06,157.99,15.823]
[1724690277875,6.3275,158.04,158.0,6.329]
[1724690278539,6.3275,158.04,157.99,22.1524]
[1724690278766,6.3279,158.03,157.99,22.1524]
[1724690279143,6.3284,158.02,157.98,6.3298]
[1724690279973,6.328,158.03,157.98,6.3298]
[1724690280176,6.3283,158.02,157.98,6.3298]
[1724690280352,6.328,158.03,157.98,6.3298]
[1724690280750,6.3279,158.03,157.99,6.3293]
[1724690280947,6.3273,158.05,157.98,15.8243]
[1724690281155,6.3273,158.05,158.0,6.3287]
[1724690281358,6.3273,158.05,158.01,6.3286]
[1724690281943,6.3273,158.05,158.0,15.8224]
[1724690282149,6.3273,158.05,158.0,22.1513]
[1724690285280,0.8079086,158.06,158.0,15.8224]
[1724690285576,0.8079086,158.06,158.03,6.3278]
[1724690286894,0.8079086,158.06,158.02,22.1485]
[1724690287064,7.1347086,158.06,158.02,15.8203]
[1724690287384,7.1347086,158.06,157.99,22.1524]
[1724690287385,6.3277,158.04,157.99,22.1524]
[1724690287693,6.3277,158.04,157.99,22.1526]
[1724690287869,0.8079086,158.06,158.01,6.3286]
[1724690288193,7.1347086,158.06,158.02,6.3282]
[1724690289179,7.1347086,158.06,158.01,22.1497]
[1724690289983,7.1347086,158.06,158.02,6.3282]
[1724690290782,0.8079086,158.06,158.03,6.3278]
[1724690291372,0.8079086,158.06,158.04,6.3274]
[1724690292061,0.8079086,158.06,158.03,15.8194]
[1724690292497,0.8079086,158.06,158.04,6.3274]
[1724690295397,0.8079086,158.06,158.03,22.1472]
[1724690298483,0.8079086,158.06,158.03,15.8194]
[1724690299302,0.8079086,158.06,158.03,22.1472]
[1724690299470,0.8079086,158.06,158.04,6.3273]
[1724690300778,0.8079086,158.06,158.05,6.3271]
[1724690302426,0.8079086,158.06,158.05,15.0382703]
[1724690302572,0.8079086,158.06,158.05,36.30328903]
[1724690304506,387.6223,158.17,158.12,6.3241]
[1724690304806,6.322,158.18,158.13,6.3238]
[1724690305308,15.123,158.19,158.08,55.97378022]
[1724690305480,15.123,158.19,158.13,6.3235]
[1724690305481,21.4447,158.19,158.13,6.3235]
[1724690305684,21.4447,158.19,158.14,15.8081]
[1724690306282,21.4445,158.19,158.14,15.8081]
[1724690306893,6.322,158.18,158.14,15.8081]
[1724690307679,45.0,158.17,158.14,15.8081]
[1724690308207,21.4445,158.19,158.14,15.8081]
[1724690308391,45.0,158.18,158.14,22.1314]
[1724690308806,45.0,158.18,158.14,15.8081]
[1724690309814,45.0,158.18,158.14,22.1315]
[1724690310892,45.0,158.18,158.15,6.323]
[1724690311123,387.8235,158.21,158.14,15.8081]
[1724690311995,394.1445,158.21,158.16,6.3226]
[1724690312223,45.0,158.2,158.16,6.3226]
[1724690312402,16.2753,158.23,158.14,15.8081]
[1724690312403,7.1282086,158.22,158.17,6.3222]
[1724690312720,7.1282086,158.22,158.16,15.8059]
[1724690313222,0.8079086,158.22,158.18,6.3218]
[1724690313398,7.1282086,158.22,158.17,6.3221]
[1724690313597,0.8079086,158.22,158.13,15.8094]
[1724690313791,6.3211,158.2,158.13,15.8094]
[1724690313989,6.3211,158.2,158.15,6.3231]
[1724690314617,6.3209,158.21,158.16,6.3226]
[1724690314942,45.0,158.2,158.16,6.3226]
[1724690316293,6.3209,158.21,158.15,15.807]
[1724690316499,45.0,158.2,158.16,6.3226]
[1724690317130,51.3212,158.2,158.15,22.1299]
[1724690317625,45.0,158.2,158.11,15.8114]
[1724690317808,6.3219,158.18,158.13,6.3235]
[1724690318007,6.3219,158.18,158.11,15.8114]
[1724690318197,6.3219,158.18,158.13,6.3236]
[1724690318395,45.0,158.21,158.11,15.8114]
[1724690318595,6.3238,158.14,158.09,6.3252]
[1724690318796,45.0,158.13,158.08,15.8142]
[1724690319024,6.3243,158.12,158.06,6.3266]
[1724690319197,45.0,158.11,158.06,6.3266]
[1724690319392,45.0,158.11,158.05,15.8175]
[1724690319393,45.0,158.11,158.02,15.8207]
[1724690319616,45.0,158.12,158.02,15.8207]
[1724690319804,16.2753,158.11,158.02,15.8207]
[1724690320008,6.3259,158.08,158.03,6.3276]
[1724690320193,16.2753,158.11,158.03,6.3276]
[1724690320194,6.3256,158.09,158.03,6.3276]
[1724690320398,6.3251,158.1,158.02,15.8207]
[1724690321425,16.2753,158.11,158.01,31.642]
[1724690321604,260.92261786,158.19,158.01,31.642]
[1724690321605,6.3238,158.14,158.09,6.3254]
[1724690322005,16.2753,158.15,158.11,6.3246]
[1724690322321,381.3,158.21,158.06,22.4177]
[1724690322322,16.2753,158.19,158.12,15.8099]
[1724690322838,6.3224,158.17,158.12,22.1339]
[1724690323501,6.3219,158.18,158.12,15.8099]
[1724690323737,16.2753,158.19,158.12,15.8099]
[1724690324437,6.3226,158.17,158.12,15.8099]
[1724690324615,6.3226,158.17,158.12,22.1342]
[1724690325016,6.3219,158.18,158.13,6.3238]
[1724690325417,6.3219,158.18,158.12,22.1341]
[1724690327902,6.1525,158.21,158.16,6.3224]
[1724690328144,382.1079086,158.22,158.15,22.1302]
[1724690328370,0.8079086,158.22,158.15,15.8072]
[1724690328633,0.8079086,158.22,158.15,22.13]
[1724690329139,6.3219,158.18,158.1,31.6245]
[1724690329312,45.8079086,158.22,158.14,6.3234]
[1724690329506,6.3218,158.19,158.14,6.3234]
[1724690330344,6.3212,158.2,158.15,6.323]
[1724690330542,6.3207,158.21,158.16,6.3226]
[1724690330744,51.3213,158.2,158.14,22.1312]
[1724690330916,45.0,158.2,158.15,6.323]
[1724690331614,45.0,158.2,158.16,15.8058]
[1724690331813,0.8079086,158.22,158.16,15.8058]
[1724690332125,45.8079086,158.22,158.16,15.8058]
[1724690333347,6.3208,158.21,158.16,22.1283]
[1724690335751,45.0,158.2,158.16,22.1283]
[1724690335949,51.3211,158.2,158.16,15.8058]
[1724690337141,51.3211,158.2,158.16,22.1284]
[1724690338244,6.3219,158.18,158.13,37.2849]
[1724690338416,6.3219,158.18,158.13,37.2852]
[1724690338820,45.0,158.2,158.14,6.3234]
[1724690338821,6.3215,158.19,158.14,6.3234]
[1724690339022,45.0,158.18,158.14,6.3234]
[1724690339961,6.3212,158.2,158.15,6.323]
[1724690343017,6.3218,158.19,158.14,6.3233]
[1724690343218,45.0,158.18,158.14,6.3233]
[1724690343419,6.3212,158.2,158.15,6.323]
[1724690343947,6.3212,158.2,158.16,6.3225]
[1724690344164,6.3207,158.21,158.16,6.3225]
[1724690344325,45.0,158.2,158.16,6.3225]
[1724690344824,51.3211,158.2,158.16,6.3225]
[1724690345151,6.3216,158.19,158.15,15.8074]
[1724690345347,45.0,158.18,158.15,15.8074]
[1724690345721,45.0,158.18,158.15,22.1304]
[1724690346546,6.3211,158.21,158.16,6.3225]
[1724690346738,45.0,158.2,158.16,6.3225]
[1724690347356,51.3212,158.2,158.16,6.3225]
[1724690349064,45.0,158.2,158.17,6.3221]
[1724690349841,51.3211,158.2,158.15,22.1301]
[1724690350461,51.3211,158.2,158.16,6.3226]
[1724690351867,0.8079086,158.22,158.19,6.3213]
[1724690353265,0.8079086,158.22,158.2,6.321]
[1724690353957,0.8079086,158.22,158.19,15.8033]
[1724690354164,0.8079086,158.22,158.19,22.1247]
[1724690354365,0.8079086,158.22,158.2,6.3208]
[1724690355661,0.8079086,158.22,158.19,15.8033]
[1724690357446,0.8079086,158.22,158.2,6.321]
[1724690358267,0.8079086,158.22,158.19,22.1247]
[1724690358872,0.8079086,158.22,158.16,22.5521]
[1724690359037,7.1285086,158.22,158.17,6.3222]
[1724690359364,0.8079086,158.22,158.18,15.8045]
[1724690360567,7.1282086,158.22,158.18,22.1262]
[1724690362061,0.8079086,158.22,158.19,7.58567488]
[1724690362353,0.8079086,158.22,158.19,6.3215]
[1724690363866,0.8079086,158.22,158.15,15.8073]
[1724690364046,0.8079086,158.22,158.15,22.1303]
[1724690364445,16.6090086,158.22,158.12,38.3627]
[1724690364645,6.3219,158.18,158.12,38.3627]
[1724690364862,6.3219,158.18,158.13,6.3236]
[1724690365250,6.3224,158.17,158.12,38.3627]
[1724690365451,45.0,158.21,158.13,6.3237]
[1724690365659,45.0,158.21,158.14,6.3235]
[1724690365851,6.3214,158.2,158.15,6.323]
[1724690366865,6.3215,158.19,158.14,22.1312]
[1724690367238,45.0,158.18,158.14,15.8078]
[1724690367466,45.0,158.18,158.14,22.1309]
[1724690367852,45.0,158.18,158.15,6.323]
[1724690368056,45.0,158.19,158.15,6.323]
[1724690369172,51.3216,158.19,158.14,15.8078]
[1724690369342,6.3216,158.19,158.15,6.323]
[1724690369541,6.321,158.21,158.15,6.323]
[1724690369743,51.3211,158.2,158.15,6.323]
[1724690371275,51.3211,158.2,158.16,6.3226]
[1724690372049,51.3211,158.2,158.15,6.323]
[1724690372650,15.2831,158.19,158.13,6.3238]
[1724690372849,45.0,158.18,158.13,6.3238]
[1724690373063,381.3,158.21,158.11,31.6227]
[1724690373288,45.0,158.2,158.12,1.58307492]
[1724690373452,45.0,158.2,158.13,1.58307492]
[1724690373774,45.0,158.2,158.16,6.3226]
[1724690374859,51.3211,158.2,158.16,6.3226]
[1724690377276,381.3,158.21,158.17,6.322]
[1724690377456,381.3,158.21,158.17,15.8053]
[1724690377653,7.1285086,158.22,158.17,15.8053]
[1724690377848,0.8079086,158.22,158.17,15.8053]
[1724690379465,0.8079086,158.22,158.19,6.3215]
[1724690380247,0.8079086,158.22,158.2,6.321]
[1724690382455,0.8079086,158.22,158.18,6.3215]
[1724690382656,0.8079086,158.22,158.16,15.8061]
[1724690383264,0.8079086,158.22,158.17,1.58263236]
[1724690383586,0.8079086,158.22,158.19,6.3215]
[1724690385567,7.1282086,158.22,158.16,15.8061]
[1724690385763,7.1282086,158.22,158.17,6.3221]
[1724690385961,0.8079086,158.22,158.16,22.1285]
[1724690386458,6.3214,158.2,158.16,22.1285]
[1724690387163,0.8079086,158.22,158.16,15.8061]
[1724690387504,6.3219,158.18,158.13,22.1332]
[1724690388169,6.3223,158.17,158.13,22.1332]
[1724690390985,6.3232,158.15,158.11,6.3246]
[1724690391174,18.62299275,158.16,158.11,6.3246]
[1724690391382,6.3231,158.15,158.11,6.3246]
[1724690391578,18.62299275,158.16,158.11,6.3246]
[1724690392190,6.3223,158.17,158.1,15.8122]
[1724690392373,6.322,158.18,158.14,6.3234]
[1724690392573,51.3215,158.19,158.12,15.8104]
[1724690392896,45.0,158.19,158.15,6.323]
[1724690393106,6.3212,158.2,158.14,15.8084]
[1724690393274,6.3216,158.19,158.15,6.323]
[1724690396278,6.3219,158.18,158.14,22.1318]
[1724690396688,6.3219,158.18,158.14,15.8084]
[1724690396988,6.3225,158.17,158.12,6.3241]
[1724690397707,6.3225,158.17,158.13,6.3239]
[1724690399504,16.2367,158.21,158.14,6.3234]
[1724690399505,6.3219,158.18,158.14,6.3234]
[1724690399707,6.3219,158.18,158.13,22.1331]
[1724690399894,51.3226,158.17,158.13,15.8094]
[1724690400684,51.3226,158.17,158.13,22.1332]
[1724690401214,6.322,158.18,158.13,22.1332]
[1724690401383,12.30019275,158.19,158.13,15.8094]
[1724690401591,18.62189275,158.19,158.15,6.323]
[1724690402581,16.2367,158.21,158.16,6.3225]
[1724690402999,6.3217,158.19,158.15,15.8073]
[1724690404221,45.0,158.18,158.15,15.8073]
[1724690404979,6.3208,158.21,158.17,6.3222]
[1724690405384,0.8079086,158.22,158.19,6.3211]
[1724690405583,0.8079086,158.22,158.21,6.3207]
[1724690405809,0.8079086,158.22,158.2,6.3209]
[1724690410310,0.8079086,158.22,158.21,6.3207]
[1724690413537,0.8079086,158.22,158.19,15.8028]
[1724690413538,0.8079086,158.22,158.2,6.321]
[1724690413816,0.8079086,158.22,158.21,6.3207]
[1724690427925,0.8079086,158.22,158.2,6.321]
[1724690428459,0.8079086,158.22,158.21,6.3207]
[1724690433642,0.8079086,158.22,158.19,15.8028]
[1724690434240,0.8079086,158.22,158.21,6.3207]
[1724690434545,0.8079086,158.22,158.2,6.321]
[1724690434763,13.09310947,158.22,158.17,31.6112]
[1724690435236,19.41340947,158.22,158.17,6.3221]
[1724690435440,51.3207,158.21,158.17,6.3221]
[1724690436163,66.4871,158.21,158.17,6.3221]
[1724690436863,60.1664,158.21,158.17,6.3221]
[1724690437045,15.1664,158.21,158.19,6.3214]
[1724690439266,45.0,158.2,158.17,6.322]
[1724690441872,51.3211,158.2,158.16,22.1287]
[1724690443434,45.0,158.2,158.13,15.8089]
[1724690443680,6.3215,158.19,158.15,6.323]
[1724690444064,45.0,158.2,158.13,15.8089]
[1724690444265,6.3231,158.15,158.11,6.3245]
[1724690444675,6.2427,158.18,158.1,15.812]
[1724690444970,45.0,158.17,158.1,15.812]
[1724690445148,6.3232,158.15,158.1,22.137]
[1724690445548,6.3232,158.15,158.11,6.3246]
[1724690445778,12.28520087,158.14,158.11,6.3246]
[1724690445946,6.3231,158.15,158.11,6.3246]
[1724690446146,6.3243,158.12,158.07,6.3262]
[1724690446371,51.3235,158.14,158.09,6.3253]
[1724690446572,6.3239,158.13,158.08,6.3258]
[1724690446753,45.0,158.12,158.08,6.3258]
[1724690447344,45.0,158.12,158.06,22.1426]
[1724690447550,45.0,158.12,158.06,15.8163]
[1724690447964,45.0,158.12,158.07,6.3261]
[1724690448160,51.3244,158.12,158.07,6.3261]